[Event "Bangabandhu Premier Div League 2022"]
[Site "Dhaka"]
[Date "2022.12.10"]
[Round "11.2"]
[White "Chanda, Sandipan"]
[Black "Aradhya, Garg"]
[Result "1/2-1/2"]
[ECO "D02"]
[WhiteElo "2474"]
[BlackElo "2289"]
[Annotator "TA"]
[PlyCount "136"]
[EventDate "2022.12.01"]
[EventCountry "BAN"]
[SourceTitle "playchess.com"]
[Source "ChessBase"]
[SourceQuality "1"]
[TimeControl "40/5400+30:1800+30"]

{[%evp 9,136,-9,32,41,43,37,52,33,39,35,35,36,46,31,70,48,39,0,0,0,0,0,0,3,39,3,3,0,0,0,0,0,0,0,0,0,5,0,0,0,10,0,0,-8,0,0,0,0,0,-38,-38,-39,-41,-91,-87,-86,-20,-20,-20,-49,-20,-20,-20,-20,-20,-52,-55,-68,-60,-75,-75,-75,-68,-68,-68,-93,-93,-97,-97,-121,-121,-121,-83,-83,-83,-83,-83,-83,-83,-83,-83,-94,-75,-94,-75,-75,-75,-75,-75,-94,-94,-94,-94,-94,-75,-94,-94,-94,-60,-94,-60,-60,-60,-60,-60,-60,-60,-94,-94,-94,0,-94,-60,-60,-60,-60,-60,-60,-60]} 1. d4 {[%emt 0:00:05]} d5 {[%emt 0:00:02]} 2. Nf3 {[%emt 0:00:10]} Nf6 {[%emt 0:00:05]} 3. Bf4 {[%emt 0:00:07]} c5 {[%emt 0:00:08]} 4. e3 {[%emt 0:00:07]} Nc6 {[%emt 0:00:05]} 5. Nbd2 {[%emt 0:00:08]} Nh5 {[%emt 0:02:28]} 6. dxc5 {[%emt 0:00:13] D02: 1 d4 d5 2 Nf3 sidelines, including 2...Nf6 3 g3 and 2...Nf6 3 Bf4.} Nxf4 {[%emt 0:00:06]} 7. exf4 {[%emt 0:00:08]} g6 {[%emt 0:01:57]} 8. c3 {[%emt 0:00:08] White is slightly better.} Bh6 {[%emt 0:01:15]} 9. g3 {[%emt 0:00:09]} O-O {[%emt 0:00:06][%cal Oe7e5]} 10. Bg2 {[%emt 0:00:05]} b6 {[%emt 0:00:27]} 11. Qa4 {[%emt 1:34:40]} Qc7 {[%emt 0:03:43]} 12. cxb6 {[%emt 0:00:00]} Qxb6 {[%emt 0:00:37]} 13. Qb3 {[%emt 0:00:00] [#]} Qc5 $146 {[%emt 0:00:49]} ({Predecessor:} 13... Qa5 14. O-O Rb8 15. Qd1 Rxb2 16. Nb3 Qxc3 17. Qxd5 Rd8 18. Rac1 Qxc1 19. Qxd8+ Nxd8 20. Rxc1 Be6 {½-½ (75) Shuvalova,P (2493)-Niemann,H (2656) Chess.com INT 2022}) 14. O-O {[%emt 0:00:00]} Rb8 {[%emt 0:02:26]} 15. Qc2 {[%emt 0:00:00]} Bf5 {[%emt 0:03:46]} 16. Qc1 {[%emt 0:02:30]} Qb5 {[%emt 1:20:30]} 17. Nb3 {[%emt 0:00:30]} e5 {[%emt 0:00:30]} 18. Qd1 {[%emt 0:00:00]} exf4 {[%emt 0:00:00]} 19. Nfd4 {[%emt 0:00:00]} Nxd4 {[%emt 0:00:00]} 20. Nxd4 {[%emt 0:00:00]} Qd7 {[%emt 0:00:00]} 21. Nxf5 {[%emt 0:00:00]} Qxf5 {[%emt 0:00:00]} 22. g4 {[%emt 0:00:00]} Qd7 {[%emt 0:00:00]} 23. Bxd5 {[%emt 0:00:00]} Rxb2 {[%emt 0:00:00]} 24. Qf3 {[%emt 0:03:30]} Bg5 {[%emt 0:00:00]} 25. Rad1 {[%emt 0:00:30]} Qc7 {[%emt 0:04:00]} 26. Bb3 {[%emt 0:00:00]} Re8 {[%emt 0:00:30]} 27. Rd5 {[%emt 0:01:00]} Bf6 {[%emt 0:00:00]} 28. Rfd1 {[%emt 0:00:00] [#] And now Rd7 would win.} Qxc3 {[%emt 0:01:00]} (28... Bxc3 $2 29. Rd7 Re1+ 30. Kg2 $18) 29. R5d3 {[%emt 0:01:00]} Qe5 {[%emt 0:00:00]} 30. Rd7 {[%emt 0:00:00]} Re7 {[%emt 0:01:00]} 31. R7d5 {[%emt 0:00:00] [#]} (31. Rxe7 $15 Bxe7 32. Qd5 Qxd5 33. Rxd5) 31... Qe2 $1 $17 {[%emt 0:00:30]} 32. Qxe2 {[%emt 0:00:00]} Rbxe2 {[%emt 0:00:00]} (32... Rexe2 $17 33. Rd7 Bh4 34. Bxf7+ Kf8) 33. g5 $11 {[%emt 0:00:00]} Be5 {[%emt 0:01:00]} 34. Rd7 {[%emt 0:00:00] Against f3} Bc7 {[%emt 0:00:30]} 35. Rxe7 {[%emt 0:00:00]} Rxe7 {[%emt 0:00:00][%mdl 4096] Endgame KRB-KRB} 36. Kg2 {[%emt 0:00:00] Prevents f3+.} f3+ {[%emt 0:00:00]} 37. Kxf3 {[%emt 0:00:00]} Bxh2 {[%emt 0:00:00]} 38. Rd5 {[%emt 0:01:06]} Bc7 {[%emt 0:02:00]} 39. a4 {[%emt 0:01:24]} Kg7 {[%emt 0:00:00]} 40. a5 {[%emt 0:03:00]} f6 {[%emt 0:00:00]} 41. gxf6+ {[%emt 0:28:44]} Kxf6 {[%emt 0:16:24]} 42. Rb5 {[%emt 0:00:00]} h5 {[%emt 0:00:00]} 43. Bc2 {[%emt 0:00:00]} Be5 {[%emt 0:00:00]} 44. Be4 {[%emt 0:00:00]} g5 {[%emt 0:16:36]} 45. Kg2 {[%emt 0:00:00]} Bf4 {[%emt 0:00:30]} 46. Rf5+ {[%emt 0:00:00]} Ke6 {[%emt 0:00:00]} 47. Rc5 {[%emt 0:00:00]} Rc7 {[%emt 0:01:00]} 48. Rxc7 {[%emt 0:00:00]} Bxc7 $17 {[%emt 0:00:00] KB-KB} 49. a6 {[%emt 0:05:46]} Kf6 {[%emt 0:00:00]} 50. f3 {[%emt 0:00:00]} Bb6 {[%emt 0:00:00]} 51. Bc6 {[%emt 0:00:00]} Ke7 {[%emt 0:00:00]} 52. Be4 {[%emt 0:00:00]} Kf7 {[%emt 0:00:00]} 53. Bd5+ {[%emt 0:00:00]} Kg6 {[%emt 0:00:00]} 54. Be6 {[%emt 0:00:00]} Kf6 {[%emt 0:00:00]} 55. Bc8 {[%emt 0:00:00]} Ke5 {[%emt 0:00:00]} 56. Bd7 {[%emt 0:00:00]} Be3 {[%emt 0:00:00]} 57. Be8 {[%emt 0:00:00]} h4 {[%emt 0:00:00]} 58. Bd7 {[%emt 0:00:00]} Bf4 {[%emt 0:00:00]} 59. Bg4 {[%emt 0:00:00]} Kd6 {[%emt 0:00:00]} 60. Bc8 {[%emt 0:00:00]} Kc7 {[%emt 0:00:00]} 61. Bb7 {[%emt 0:00:00]} Bc1 {[%emt 0:00:00]} 62. Be4 {[%emt 0:00:00]} Kd6 {[%emt 0:00:00]} 63. Bb7 {[%emt 0:00:00]} Ke5 {[%emt 0:00:00]} 64. Bc8 {[%emt 0:00:00]} Bf4 {[%emt 0:00:00]} (64... Bb2 $17) 65. Bd7 {[%emt 0:00:00]} (65. Bg4 $11) 65... Kd5 {[%emt 0:00:00]} 66. Bc8 {[%emt 0:00:00] Black is slightly better.} Kc5 {[%emt 0:00:00]} 67. Bb7 {[%emt 0:00:00]} Kb6 {[%emt 0:00:00]} 68. Bc8 {[%emt 0:00:00]} Bd6 {[%emt 0:00:00] Weighted Error Value: White=0.09 (flawless) /Black=0.09 (flawless)} 1/2-1/2

[Event "Bangabandhu Premier Div League 2022"]
[Site "Dhaka"]
[Date "2022.12.10"]
[Round "11.3"]
[White "Iniyan, P."]
[Black "Rakhmanov, Aleksandr"]
[Result "1/2-1/2"]
[ECO "D31"]
[WhiteElo "2534"]
[BlackElo "2630"]
[Annotator "TA"]
[PlyCount "140"]
[EventDate "2022.11.30"]
[EventType "team-tourn"]
[EventCountry "BAN"]
[SourceTitle "playchess.com"]
[Source "ChessBase"]
[SourceQuality "1"]
[TimeControl "40/5400+30:1800+30"]

{[%evp 9,140,22,28,25,30,27,27,18,19,19,13,21,24,16,25,17,16,15,20,17,10,16,19,12,14,5,3,6,13,4,9,0,0,9,19,13,12,12,12,12,13,12,12,12,13,12,13,13,13,6,6,6,6,5,5,5,5,5,5,5,5,5,7,7,8,8,13,13,13,13,13,13,13,13,13,13,13,13,13,7,13,6,13,13,13,13,13,13,13,13,13,13,13,13,13,13,13,13,13,13,13,13,13,13,13,13,14,13,30,30,30,30,30,30,30,30,30,30,30,30,30,0,30,30,30,0,0,0,0,0,0,0,0]} 1. d4 {[%emt 0:02:13]} d5 {[%emt 0:00:14]} 2. c4 {[%emt 0:00:09]} e6 {[%emt 0:00:05]} 3. Nc3 {[%emt 0:00:16]} a6 {[%emt 0:00:06]} 4. cxd5 {[%emt 0:00:05]} exd5 {[%emt 0:00:04]} 5. Nf3 {[%emt 0:00:09]} h6 {[%emt 0:00:09]} 6. Bf4 {[%emt 0:00:15] D31: Queen's Gambit Declined: Semi-Slav without ...Nf6 (+ Marshall Gambit and Noteboom) and Exchange Variation lines without ...Nf6.} Nf6 {[%emt 0:00:07]} 7. e3 {[%emt 0:00:07]} Bd6 {[%emt 0:00:08]} 8. Be5 {[%emt 0:00:27] White has an edge.} c6 {[%emt 0:00:08]} 9. Bd3 {[%emt 0:00:12]} O-O {[%emt 0:00:18]} 10. h3 {[%emt 0:00:05]} Re8 {[%emt 0:01:39] [#]} 11. Rc1 $146 {[%emt 0:00:08]} ({Predecessor:} 11. g4 Bxe5 12. Nxe5 c5 13. Nf3 cxd4 14. Nxd4 Nc6 15. Qa4 Bd7 16. Nxc6 bxc6 17. Qf4 {0-1 (86) Piorun,K (2640)-Grandelius,N (2663) Chess.com INT 2022}) 11... Bxe5 {[%emt 0:01:27]} 12. Nxe5 {[%emt 0:00:07]} c5 {[%emt 0:03:05]} 13. Bb1 {[%emt 0:00:13]} Qd6 {[%emt 0:07:03]} 14. O-O {[%emt 0:13:49]} cxd4 {[%emt 0:00:40]} 15. exd4 {[%emt 0:00:36]} Nc6 {[%emt 0:02:43]} 16. Nxc6 {[%emt 0:20:37]} Qxc6 {[%emt 0:00:43]} 17. Re1 {[%emt 0:00:14][%cal Oc3e4] Ne4! is the strong threat.} Rxe1+ {[%emt 0:01:00]} 18. Qxe1 {[%emt 0:00:07][%cal Oc3e4] next Ne4! is good for White.} Bd7 {[%emt 0:04:01] [#]} 19. Ne4 $1 {[%emt 0:00:25]} Qb6 {[%emt 0:00:46]} 20. Nxf6+ {[%emt 0:00:03]} Qxf6 {[%emt 0:00:10]} 21. Qe5 {[%emt 0:00:04]} Qe6 {[%emt 0:23:47]} (21... Qxe5 {simplifies} 22. dxe5 Bc6 23. f4 g5) 22. a3 {[%emt 0:08:45]} (22. Rc7 {looks sharper.} Rc8 23. Rxc8+ Bxc8 24. g4) 22... Re8 {[%emt 0:02:15]} 23. Qxe6 {[%emt 0:16:56]} Rxe6 $11 {[%emt 0:00:58][%mdl 4096] Endgame KRB-KRB} (23... Bxe6 {simplifies} 24. g4 Bd7 25. Bd3 Rc8) 24. Bf5 {[%emt 0:00:06]} Rc6 {[%emt 0:00:27]} 25. Rxc6 {[%emt 0:00:09]} (25. Bxd7 $2 {is the wrong capture.} Rxc1+ 26. Kh2 Rc2 $19) 25... Bxc6 {[%emt 0:00:03] KB-KB} 26. Kh2 {[%emt 0:00:12]} Kf8 {[%emt 0:00:33]} 27. Kg3 {[%emt 0:00:14]} Ke7 {[%emt 0:00:06]} 28. Kf4 {[%emt 0:06:37]} Kf6 {[%emt 0:00:52]} 29. Bc8 {[%emt 0:01:02]} a5 {[%emt 0:00:15]} 30. h4 {[%emt 0:00:35]} b6 {[%emt 0:01:33]} 31. g3 {[%emt 0:00:12]} Ba4 {[%emt 0:02:17]} 32. Bb7 {[%emt 0:00:24]} Bb3 {[%emt 0:00:26]} 33. Bc6 {[%emt 0:00:38]} Bc4 {[%emt 0:00:35]} 34. Bd7 {[%emt 0:05:44]} Bb3 {[%emt 0:01:37]} 35. Bb5 {[%emt 0:00:08]} g5+ {[%emt 0:06:04]} 36. Kg4 {[%emt 0:07:20]} Bd1+ {[%emt 0:06:52]} 37. f3 {[%emt 0:00:10]} gxh4 {[%emt 0:02:00]} 38. gxh4 {[%emt 0:00:07]} Bc2 {[%emt 0:01:10]} 39. Bd7 {[%emt 0:03:47]} Bd1 {[%emt 0:01:22]} 40. Kf4 {[%emt 0:00:37]} Bc2 {[%emt 0:01:40]} 41. Bb5 {[%emt 0:30:14]} Bf5 {[%emt 0:30:39]} 42. Bc6 {[%emt 0:00:33]} Be6 {[%emt 0:00:10]} 43. Bb7 {[%emt 0:01:48]} Ke7 $1 {[%emt 0:00:10]} 44. Ke5 {[%emt 0:00:06]} f6+ {[%emt 0:00:04]} 45. Kf4 {[%emt 0:00:05]} Kf7 {[%emt 0:09:46]} 46. Bc6 {[%emt 0:00:19]} Ke7 {[%emt 0:01:15]} 47. Bb5 {[%emt 0:00:08]} Kd6 {[%emt 0:00:53]} 48. Ba4 {[%emt 0:02:38]} Ke7 {[%emt 0:00:27]} 49. Bc2 {[%emt 0:00:19]} Kd6 {[%emt 0:04:55]} 50. Bf5 {[%emt 0:00:15] [#] Black must now prevent Bxe6.} Bf7 {[%emt 0:00:17]} 51. Kg4 {[%emt 0:00:05]} Ke7 {[%emt 0:00:45]} 52. Bc2 {[%emt 0:05:31]} Ke6 {[%emt 0:01:12]} 53. Bh7 {[%emt 0:03:20]} Ke7 {[%emt 0:00:29]} 54. Kf5 {[%emt 0:00:54]} Bh5 {[%emt 0:00:27]} 55. Kf4 {[%emt 0:00:05]} Bf7 {[%emt 0:00:12] Against Bg8} 56. Kg4 {[%emt 0:00:45]} Kd6 {[%emt 0:10:56]} 57. Bd3 {[%emt 0:03:58]} (57. Kf5 $5 Ke7 $8 58. Kg4 $11) 57... Ke6 {[%emt 0:00:40]} 58. Ba6 {[%emt 0:00:09] Strongly threatening Bc8+.} f5+ {[%emt 0:04:04]} 59. Kf4 {[%emt 0:01:23]} Kf6 {[%emt 0:00:05]} 60. Bc8 {[%emt 0:00:00]} Be6 {[%emt 0:00:00]} 61. Bb7 {[%emt 0:00:00]} Bf7 {[%emt 0:00:00]} 62. Bc6 {[%emt 0:00:00]} Be6 {[%emt 0:00:00]} 63. Be8 {[%emt 0:00:00]} Bg8 {[%emt 0:00:00]} 64. Bd7 {[%emt 0:00:00]} Be6 {[%emt 0:00:00]} 65. Be8 {[%emt 0:00:00]} Bg8 {[%emt 0:00:00]} 66. Ke3 {[%emt 0:00:00]} Bf7 {[%emt 0:00:00]} 67. Bxf7 {[%emt 0:00:00]} Kxf7 {[%emt 0:00:00] The position is equal.} 68. h5 {[%emt 0:00:00]} Kf6 {[%emt 0:00:00]} 69. f4 {[%emt 0:00:00]} b5 {[%emt 0:00:00]} 70. b4 {[%emt 0:00:00]} a4 {[%emt 0:08:36] An interesting draw.   Weighted Error Value: White=0.01 (flawless) /Black=0.01 (flawless)} 1/2-1/2

[Event "Bangabandhu Premier Div League 2022"]
[Site "Dhaka"]
[Date "2022.12.10"]
[Round "11.3"]
[White "Sankalan Shah"]
[Black "Harsha Bharathakoti"]
[Result "1/2-1/2"]
[ECO "D31"]
[WhiteElo "2218"]
[BlackElo "2582"]
[Annotator "TA"]
[PlyCount "60"]
[EventDate "2022.12.01"]
[EventCountry "BAN"]
[SourceTitle "playchess.com"]
[Source "ChessBase"]
[SourceQuality "1"]
[TimeControl "40/5400+30:1800+30"]

{[%evp 9,60,18,28,27,31,22,24,12,22,22,21,22,25,16,39,41,32,-10,22,15,25,25,30,19,33,23,38,33,38,32,58,55,86,90,139,128,133,134,260,218,279,274,272,303,316,285,300,292,354,213,220,190,203]} 1. d4 {[%emt 1:31:00]} d5 {[%emt 0:01:58]} 2. c4 {[%emt 0:00:00]} e6 {[%emt 0:01:21]} 3. Nc3 a6 {[%emt 1:28:41]} 4. cxd5 {[%emt 0:00:00]} exd5 {[%emt 0:00:30]} 5. Nf3 {[%emt 0:00:00]} h6 {[%emt 0:00:30]} 6. Bf4 {[%emt 0:00:00] D31: Queen's Gambit Declined: Semi-Slav without ...Nf6 (+ Marshall Gambit and Noteboom) and Exchange Variation lines without ...Nf6.} Nf6 {[%emt 0:00:30]} 7. e3 {[%emt 0:00:00]} Bd6 {[%emt 0:00:00]} 8. Ne5 {[%emt 0:03:30] White has an edge.} O-O {[%emt 0:01:00]} 9. Bd3 {[%emt 0:00:00]} Re8 10. Bg3 {[%emt 0:01:00]} c5 {[%emt 0:01:00]} 11. O-O {[%emt 0:00:30] [#]} b5 $146 {[%emt 0:00:30][%cal Bb7b5,Bb5b4][%mdl 32]} (11... cxd4 {simplifies} 12. exd4 Nc6 13. Nxc6 bxc6 14. Bxd6 Qxd6 15. Na4 a5) ({Predecessor:} 11... cxd4 12. exd4 Nc6 13. Nxc6 bxc6 14. Qd2 Bxg3 15. hxg3 Qd6 16. Rfe1 Rxe1+ 17. Rxe1 a5 {½-½ (108) Sargissian,G (2689)-Wang,Y (2684) Chess.com INT 2019}) 12. Qf3 {[%emt 0:00:30]} Bb7 {[%emt 0:00:30]} 13. Bc2 {[%emt 0:00:00][%cal Oc2h7]} Qe7 {[%emt 0:00:00]} (13... cxd4 $5 14. exd4 Nc6 15. Nxc6 Bxc6 $11) 14. Qf5 {[%emt 0:00:00]} (14. Bh4 {simplifies} Bxe5 15. dxe5 Qxe5 16. Bxf6 Qxf6 17. Qxf6 gxf6 18. Rad1) 14... b4 $1 {[%emt 0:00:00]} 15. Na4 $36 {[%emt 0:00:00][%mdl 2048] Ng4 is the strong threat. White has the initiative.} cxd4 16. exd4 {[%emt 0:02:00] [#] Hoping for Nb6.} Nc6 {[%emt 0:00:00]} 17. Nf3 Bc8 {[%emt 0:02:30]} 18. Qd3 {[%emt 0:00:00]} Bxg3 {[%emt 0:00:00]} 19. hxg3 {[%emt 0:00:00]} Qa7 {Prevents Nb6.} 20. Nc5 {[%emt 0:00:00]} Ne4 {[%cal Oc6d4]} 21. Ba4 {[%emt 0:02:30]} Bb7 {[%emt 0:02:00]} (21... Qb6 $142) 22. Rac1 $16 {[%emt 0:00:00] [#] And now Nxb7 would win.} Rac8 {[%emt 0:00:00]} 23. Rfe1 {White is more active.} f5 {[%emt 0:01:00]} (23... Red8 $16 {was called for.} 24. Nxe4 dxe4 25. Rxe4 Nxd4 26. Rxc8 Nxf3+ 27. gxf3 Rxc8) 24. Re2 {[%emt 0:00:00]} Red8 25. Rec2 {[%emt 0:02:00] aiming for Nxb7.} Ne7 {[%emt 0:00:00]} 26. Ne5 {[%emt 0:00:30]} Nxc5 {[%emt 0:00:00]} 27. Rxc5 ({Don't do} 27. dxc5 $6 Bc6 $18) 27... Rxc5 {[%emt 0:00:00]} 28. Rxc5 {[%emt 0:00:00] Threatens to win with Rc7.} Rc8 {[%emt 0:02:30] Against Rc7} 29. Qc2 {[%emt 0:00:00] Black must now prevent Bd7.} Rxc5 {[%emt 0:00:00]} 30. dxc5 {[%emt 0:00:08] Strongly threatening Bd7.} Bc8 {[%emt 0:00:00] Inhibits Bd7.   Weighted Error Value: White=0.12 (very precise) /Black=0.19 (very precise)} 1/2-1/2

[Event "Bangabandhu Premier Div League 2022"]
[Site "Dhaka"]
[Date "2022.12.10"]
[Round "11.4"]
[White "Zia, Tahsin Tajwar"]
[Black "Reefat, Bin-Sattar"]
[Result "1-0"]
[ECO "D11"]
[WhiteElo "2241"]
[BlackElo "2367"]
[Annotator "TA"]
[PlyCount "73"]
[EventDate "2022.11.30"]
[EventType "team-tourn"]
[EventCountry "BAN"]
[SourceTitle "playchess.com"]
[Source "ChessBase"]
[SourceQuality "1"]
[TimeControl "40/5400+30:1800+30"]

{[%evp 9,73,14,33,16,14,16,22,17,40,36,43,37,41,31,38,48,50,29,45,34,128,147,147,163,147,157,153,152,131,95,123,62,69,83,101,90,98,5,17,23,17,0,0,0,214,218,295,273,416,415,912,906,901,896,1082,1006,1040,977,1056,1017,960,1015,925,372,992,389]} 1. d4 {[%emt 0:00:22]} d5 {[%emt 0:00:36]} 2. c4 {[%emt 0:00:13]} c6 {[%emt 0:00:15]} 3. Nf3 {[%emt 0:00:12]} Nf6 {[%emt 0:00:05]} 4. g3 {[%emt 0:00:11]} dxc4 {[%emt 0:01:29]} 5. Bg2 {[%emt 0:00:14]} Nbd7 {[%emt 0:00:42]} 6. a4 {[%emt 0:02:35][%mdl 1024] White has compensation. D11: Slav Defence: 3 Nf3 sidelines and 3...Nf6 4 e3 Bg4.} a5 {[%emt 0:00:25]} 7. O-O {[%emt 0:00:28]} Nb6 {[%emt 0:06:22]} 8. Qc2 {[%emt 0:05:35] The position is equal.} g6 {[%emt 0:01:04]} 9. e4 {[%emt 0:01:23] Against Bf5} Bg7 {[%emt 0:00:22]} 10. Na3 {[%emt 0:02:15]} O-O {[%emt 0:15:41]} 11. Rd1 {[%emt 0:11:01]} h6 {[%emt 0:25:01]} 12. h3 {[%emt 0:01:10]} Be6 {[%emt 0:04:00]} 13. Ne5 {[%emt 0:04:07] [#]} Nfd7 $146 {[%emt 0:22:15]} ({Predecessor:} 13... Ne8 14. f4 Qd6 15. Be3 Qb4 16. g4 Nd6 17. f5 gxf5 18. gxf5 Bc8 19. Qc1 Nxa4 20. Bxh6 Nxb2 21. Bxg7 Kxg7 {1-0 (29) Cori,J (2658)-Rambaldi,F (2565) New York 2018}) 14. Nexc4 {[%emt 0:08:45]} (14. Ng4 $5 {[%cal Rg4h6]}) 14... f5 {[%emt 0:00:10] [#]} (14... Nxc4 $14 15. Nxc4 Nb6) 15. d5 $1 $16 {[%emt 0:09:48]} cxd5 {[%emt 0:00:24]} 16. exd5 {[%emt 0:00:08]} Bf7 {[%emt 0:00:11]} 17. Be3 {[%emt 0:00:52]} Nxc4 {[%emt 0:04:10]} 18. Nxc4 {[%emt 0:00:28]} Rc8 {[%emt 0:01:54]} 19. Qb3 {[%emt 0:01:53]} g5 {[%emt 0:00:13]} 20. f4 {[%emt 0:07:35] White is more active.} (20. Nb6 $16) 20... Nc5 $14 {[%emt 0:04:04]} 21. Qc2 {[%emt 0:13:20]} Bh5 {[%emt 0:09:35]} 22. Rd2 {[%emt 0:00:25]} Bg6 {[%emt 0:01:39]} 23. Qd1 {[%emt 0:13:07]} (23. fxg5 $16 hxg5 24. d6 (24. Bxg5 Ne4 $11)) 23... Ne4 $11 {[%emt 0:00:32]} 24. Bxe4 {[%emt 0:00:07]} fxe4 {[%emt 0:00:03]} 25. Nb6 {[%emt 0:00:26]} gxf4 {[%emt 0:00:57]} 26. gxf4 {[%emt 0:00:14] [#] Hoping for Rg2.} Bf5 $2 {[%emt 0:00:28]} 27. Nxc8 $18 {[%emt 0:01:18]} Qxc8 {[%emt 0:00:04]} 28. Rc1 {[%emt 0:01:18]} Qe8 {[%emt 0:01:07]} (28... Qd7 $142 29. Rg2 Bxh3) 29. Kh2 {[%emt 0:00:28]} Bd7 {[%emt 0:00:33]} (29... Rf6 $142 30. Rc7 Rd6 31. Rxb7 Qf8) 30. Rg2 {[%emt 0:00:37]} Kh7 {[%emt 0:00:08]} 31. Bd4 {[%emt 0:02:52]} Bf6 {[%emt 0:00:10]} 32. Bxf6 {[%emt 0:01:07]} Rxf6 {[%emt 0:00:08]} 33. Qd4 {[%emt 0:02:42]} Bxh3 {[%emt 0:00:45]} 34. Qxe4+ {[%emt 0:00:04]} (34. Kxh3 {gets mated.} Qh5+ 35. Kg3 Rg6+ 36. Kf2 Qf3+ 37. Ke1 Rxg2) 34... Bf5 {[%emt 0:00:07]} 35. Qe2 {[%emt 0:00:29] Rc7 is the strong threat.} Qd7 {[%emt 0:02:21] Prevents Rc7.} 36. Re1 {[%emt 0:05:25]} (36. Qe5 $142 {Threatening mate with Rc7.} Qd6 37. Rc7) 36... Rf7 $2 {[%emt 0:00:00]} (36... Qxd5 37. Qxe7+ Rf7) 37. Qe5 $2 {[%emt 0:00:56] Weighted Error Value: White=0.38/Black=0.38} (37. Qh5 Rf6 38. Rge2) 1-0